[Event "Titled Tuesday Blitz June 21 Late 2022"]
[White "Lashkin, Jegor"]
[Black "Paravyan, David"]
[WhiteFideId "13907808"]
[BlackFideId "4194985"]
[WhiteElo "2368"]
[BlackElo "2569"]
[Result "1/2-1/2"]
[Round "10"]
[TimeControl "180+1"]
[Date "2022.06.21"]
[WhiteClock "0:01:55"]
[BlackClock "0:02:57"]

1. d4 {[%clk 0:03:00]}  Nf6 {[%clk 0:02:59]} 2. c4 {[%clk 0:03:01]}  g6 {[%clk 0:03:00]} 3. Nc3 {[%clk 0:03:01]}  d5 {[%clk 0:03:00]} 4. Nf3 {[%clk 0:03:00]}  Bg7 {[%clk 0:03:00]} 5. Bg5 {[%clk 0:03:01]}  Ne4 {[%clk 0:03:00]} 6. Bf4 {[%clk 0:03:01]}  Nxc3 {[%clk 0:02:59]} 7. bxc3 {[%clk 0:03:02]}  c5 {[%clk 0:02:59]} 8. e3 {[%clk 0:03:02]}  Nc6 {[%clk 0:02:59]} 9. cxd5 {[%clk 0:03:02]}  Qxd5 {[%clk 0:02:59]} 10. Be2 {[%clk 0:03:02]}  cxd4 {[%clk 0:03:00]} 11. cxd4 {[%clk 0:03:03]}  Qa5+ {[%clk 0:03:00]} 12. Qd2 {[%clk 0:03:03]}  Qxd2+ {[%clk 0:03:00]} 13. Kxd2 {[%clk 0:03:04]}  O-O {[%clk 0:03:00]} 14. Rhc1 {[%clk 0:03:00]}  Bf5 {[%clk 0:02:59]} 15. Bd3 {[%clk 0:02:51]}  Bxd3 {[%clk 0:02:58]} 16. Kxd3 {[%clk 0:02:52]}  Rfd8 {[%clk 0:02:59]} 17. Ke2 {[%clk 0:02:50]}  Rd5 {[%clk 0:02:59]} 18. Rab1 {[%clk 0:02:45]}  e5 {[%clk 0:02:59]} 19. dxe5 {[%clk 0:02:44]}  Nxe5 {[%clk 0:02:59]} 20. Bxe5 {[%clk 0:02:37]}  Bxe5 {[%clk 0:03:00]} 21. Nxe5 {[%clk 0:02:35]}  Rxe5 {[%clk 0:03:01]} 22. Rxb7 {[%clk 0:02:35]}  Ra5 {[%clk 0:03:01]} 23. Rc2 {[%clk 0:02:35]}  Rd8 {[%clk 0:03:01]} 24. g4 {[%clk 0:02:27]}  Rd6 {[%clk 0:03:00]} 25. h4 {[%clk 0:02:21]}  Rda6 {[%clk 0:03:00]} 26. Kf3 {[%clk 0:02:09]}  Rxa2 {[%clk 0:02:57]} 27. Rc8+ {[%clk 0:02:04]}  Kg7 {[%clk 0:02:57]} 28. g5 {[%clk 0:01:55]} 1/2-1/2


[Site "https://www.chess.com"]

[Event "Titled Tuesday Blitz June 21 Late 2022"]
[White "Le, Tuan Minh"]
[Black "Garriga Cazorla, Pere"]
[WhiteFideId "12401153"]
[BlackFideId "32011601"]
[WhiteElo "2530"]
[BlackElo "2433"]
[Result "1-0"]
[Round "10"]
[TimeControl "180+1"]
[Date "2022.06.21"]
[WhiteClock "0:00:51"]
[BlackClock "0:00:09"]

1. d4 {[%clk 0:03:00]}  Nf6 {[%clk 0:02:58]} 2. Nf3 {[%clk 0:02:59]}  g6 {[%clk 0:02:58]} 3. Bg5 {[%clk 0:02:56]}  Bg7 {[%clk 0:02:58]} 4. Nbd2 {[%clk 0:02:56]}  h6 {[%clk 0:02:58]} 5. Bh4 {[%clk 0:02:56]}  d6 {[%clk 0:02:57]} 6. c3 {[%clk 0:02:57]}  g5 {[%clk 0:02:57]} 7. Bg3 {[%clk 0:02:57]}  Nh5 {[%clk 0:02:57]} 8. e4 {[%clk 0:02:57]}  e6 {[%clk 0:02:57]} 9. Bc4 {[%clk 0:02:56]}  a6 {[%clk 0:02:56]} 10. Nf1 {[%clk 0:02:56]}  b5 {[%clk 0:02:54]} 11. Bb3 {[%clk 0:02:55]}  Bb7 {[%clk 0:02:54]} 12. N3d2 {[%clk 0:02:54]}  Nf6 {[%clk 0:02:51]} 13. Qe2 {[%clk 0:02:48]}  Qe7 {[%clk 0:02:49]} 14. a4 {[%clk 0:02:42]}  bxa4 {[%clk 0:02:46]} 15. Bxa4+ {[%clk 0:02:41]}  Nbd7 {[%clk 0:02:46]} 16. Bc2 {[%clk 0:02:29]}  c5 {[%clk 0:02:41]} 17. Ne3 {[%clk 0:02:26]}  cxd4 {[%clk 0:02:32]} 18. cxd4 {[%clk 0:02:26]}  O-O {[%clk 0:02:20]} 19. O-O {[%clk 0:02:22]}  Rfd8 {[%clk 0:02:13]} 20. Ra5 {[%clk 0:02:17]}  Nb8 {[%clk 0:01:52]} 21. Bd3 {[%clk 0:02:07]}  Nc6 {[%clk 0:01:50]} 22. Ra4 {[%clk 0:02:08]}  Nd7 {[%clk 0:01:41]} 23. d5 {[%clk 0:01:42]}  Nd4 {[%clk 0:01:34]} 24. Qh5 {[%clk 0:01:38]}  Nc5 {[%clk 0:01:33]} 25. Ra3 {[%clk 0:01:37]}  Rac8 {[%clk 0:01:04]} 26. Ng4 {[%clk 0:01:27]}  Qf8 {[%clk 0:01:03]} 27. h4 {[%clk 0:01:24]}  f5 {[%clk 0:00:58]} 28. exf5 {[%clk 0:01:17]}  exf5 {[%clk 0:00:55]} 29. Nxh6+ {[%clk 0:01:18]}  Bxh6 {[%clk 0:00:55]} 30. hxg5 {[%clk 0:01:18]}  Bg7 {[%clk 0:00:55]} 31. g6 {[%clk 0:01:19]}  Qe7 {[%clk 0:00:42]} 32. Bxf5 {[%clk 0:01:06]}  Bxd5 {[%clk 0:00:24]} 33. Re3 {[%clk 0:00:58]}  Be6 {[%clk 0:00:18]} 34. Bb1 {[%clk 0:00:53]}  Qf6 {[%clk 0:00:15]} 35. Bh4 {[%clk 0:00:52]}  Qf4 {[%clk 0:00:15]} 36. Bg5 {[%clk 0:00:51]}  Qg4 {[%clk 0:00:14]} 37. Qh7+ {[%clk 0:00:50]}  Kf8 {[%clk 0:00:14]} 38. Bh6 {[%clk 0:00:50]}  Bxh6 {[%clk 0:00:10]} 39. Qxh6+ {[%clk 0:00:51]}  Ke7 {[%clk 0:00:10]} 40. Qg7+ {[%clk 0:00:50]}  Ke8 {[%clk 0:00:09]} 41. Qf7# {[%clk 0:00:51]} 1-0


[Site "https://www.chess.com"]

[Event "Titled Tuesday Blitz June 21 Late 2022"]
[White "Lopez Gracia, Fernando"]
[Black "Needleman, Alejandro"]
[WhiteFideId "2207184"]
[BlackFideId "100730"]
[WhiteElo "2454"]
[BlackElo "2317"]
[Result "0-1"]
[Round "10"]
[TimeControl "180+1"]
[Date "2022.06.22"]
[WhiteClock "0:02:01"]
[BlackClock "0:02:45"]

1. c4 {[%clk 0:03:00]}  e5 {[%clk 0:02:59]} 2. Nc3 {[%clk 0:03:01]}  Nf6 {[%clk 0:02:59]} 3. Nf3 {[%clk 0:03:01]}  Nc6 {[%clk 0:02:58]} 4. e4 {[%clk 0:03:02]}  Bc5 {[%clk 0:02:57]} 5. Nxe5 {[%clk 0:03:01]}  Nxe5 {[%clk 0:02:58]} 6. d4 {[%clk 0:03:01]}  Bb4 {[%clk 0:02:57]} 7. dxe5 {[%clk 0:03:02]}  Nxe4 {[%clk 0:02:58]} 8. Qf3 {[%clk 0:03:02]}  Nxc3 {[%clk 0:02:58]} 9. bxc3 {[%clk 0:03:02]}  Bc5 {[%clk 0:02:57]} 10. Qh3 {[%clk 0:03:01]}  O-O {[%clk 0:02:55]} 11. Bd3 {[%clk 0:03:00]}  g6 {[%clk 0:02:54]} 12. Bh6 {[%clk 0:02:58]}  d6 {[%clk 0:02:55]} 13. Qg3 {[%clk 0:02:53]}  Re8 {[%clk 0:02:52]} 14. O-O-O {[%clk 0:02:46]}  Rxe5 {[%clk 0:02:49]} 15. Kb1 {[%clk 0:02:16]}  Qf6 {[%clk 0:02:47]} 16. Rhe1 {[%clk 0:02:09]}  Be6 {[%clk 0:02:47]} 17. Rxe5 {[%clk 0:02:05]}  Qxe5 {[%clk 0:02:48]} 18. Bf4 {[%clk 0:02:01]}  Qxc3 {[%clk 0:02:45]} 0-1


[Site "https://www.chess.com"]

[Event "Titled Tuesday Blitz June 21 Late 2022"]
[White "Novikova, Galina"]
[Black "Romanchuk, Viktor"]
[WhiteFideId "4157095"]
[BlackFideId "14109271"]
[WhiteElo "2382"]
[BlackElo "2571"]
[Result "1-0"]
[Round "10"]
[TimeControl "180+1"]
[Date "2022.06.22"]
[WhiteClock "0:00:06"]
[BlackClock "0:00:02"]

1. e4 {[%clk 0:03:00]}  e6 {[%clk 0:02:59]} 2. Nf3 {[%clk 0:03:01]}  d5 {[%clk 0:02:58]} 3. e5 {[%clk 0:03:01]}  c5 {[%clk 0:02:58]} 4. b4 {[%clk 0:03:02]}  b6 {[%clk 0:02:58]} 5. bxc5 {[%clk 0:03:02]}  bxc5 {[%clk 0:02:58]} 6. c3 {[%clk 0:03:02]}  Qa5 {[%clk 0:02:56]} 7. Bd3 {[%clk 0:03:02]}  Ba6 {[%clk 0:02:56]} 8. Bc2 {[%clk 0:03:01]}  Nh6 {[%clk 0:02:45]} 9. d3 {[%clk 0:03:00]}  Nf5 {[%clk 0:02:45]} 10. O-O {[%clk 0:03:00]}  Be7 {[%clk 0:02:44]} 11. Re1 {[%clk 0:02:53]}  O-O {[%clk 0:02:43]} 12. d4 {[%clk 0:02:26]}  Nc6 {[%clk 0:02:21]} 13. g4 {[%clk 0:02:11]}  Nh6 {[%clk 0:02:05]} 14. Bxh6 {[%clk 0:02:04]}  gxh6 {[%clk 0:02:06]} 15. Qd2 {[%clk 0:01:58]}  Kg7 {[%clk 0:02:01]} 16. Kh1 {[%clk 0:01:38]}  cxd4 {[%clk 0:01:59]} 17. g5 {[%clk 0:01:34]}  dxc3 {[%clk 0:01:45]} 18. gxh6+ {[%clk 0:01:32]}  Kh8 {[%clk 0:01:44]} 19. Nxc3 {[%clk 0:01:00]}  Rg8 {[%clk 0:01:29]} 20. Rg1 {[%clk 0:00:51]}  Qb4 {[%clk 0:01:20]} 21. Rg7 {[%clk 0:00:40]}  Rxg7 {[%clk 0:00:59]} 22. hxg7+ {[%clk 0:00:41]}  Kxg7 {[%clk 0:01:00]} 23. Rg1+ {[%clk 0:00:38]}  Kf8 {[%clk 0:01:00]} 24. Rg8+ {[%clk 0:00:15]}  Kxg8 {[%clk 0:00:55]} 25. Qh6 {[%clk 0:00:16]}  f5 {[%clk 0:00:19]} 26. exf6 {[%clk 0:00:15]}  Bxf6 {[%clk 0:00:11]} 27. Qxf6 {[%clk 0:00:07]}  Qg4 {[%clk 0:00:10]} 28. Ng5 {[%clk 0:00:06]}  Bd3 {[%clk 0:00:03]} 29. Bxd3 {[%clk 0:00:06]}  Qh5 {[%clk 0:00:01]} 30. Bxh7+ {[%clk 0:00:06]}  Qxh7 {[%clk 0:00:01]} 31. Nxh7 {[%clk 0:00:07]}  Kxh7 {[%clk 0:00:02]} 32. Qxe6 {[%clk 0:00:07]}  Re8 {[%clk 0:00:01]} 33. Qd7+ {[%clk 0:00:07]}  Re7 {[%clk 0:00:01]} 34. Qxc6 {[%clk 0:00:08]}  Re1+ {[%clk 0:00:01]} 35. Kg2 {[%clk 0:00:08]}  Re7 {[%clk 0:00:02]} 36. Nxd5 {[%clk 0:00:06]}  Rg7+ {[%clk 0:00:03]} 37. Kf1 {[%clk 0:00:06]}  Rg6 {[%clk 0:00:03]} 38. Qc2 {[%clk 0:00:05]}  Kh6 {[%clk 0:00:03]} 39. Ne3 {[%clk 0:00:06]}  Rf6 {[%clk 0:00:02]} 40. Qe4 {[%clk 0:00:06]} 1-0


[Site "https://www.chess.com"]

[Event "Titled Tuesday Blitz June 21 Late 2022"]
[White "Papp, Levente"]
[Black "Zhu, Jiner"]
[WhiteFideId "751243"]
[BlackFideId "8608059"]
[WhiteElo "2308"]
[BlackElo "2281"]
[Result "1/2-1/2"]
[Round "10"]
[TimeControl "180+1"]
[Date "2022.06.21"]
[WhiteClock "0:00:03"]
[BlackClock "0:00:06"]

1. d4 {[%clk 0:03:00]}  Nf6 {[%clk 0:02:58]} 2. Nf3 {[%clk 0:03:00]}  e6 {[%clk 0:02:57]} 3. g3 {[%clk 0:02:56]}  d5 {[%clk 0:02:57]} 4. Bg2 {[%clk 0:02:56]}  Be7 {[%clk 0:02:57]} 5. O-O {[%clk 0:02:56]}  b5 {[%clk 0:02:56]} 6. c3 {[%clk 0:02:46]}  O-O {[%clk 0:02:51]} 7. Bf4 {[%clk 0:02:43]}  Bb7 {[%clk 0:02:51]} 8. Nbd2 {[%clk 0:02:41]}  Nbd7 {[%clk 0:02:48]} 9. Ne5 {[%clk 0:02:39]}  c5 {[%clk 0:02:43]} 10. Nxd7 {[%clk 0:02:38]}  Qxd7 {[%clk 0:02:40]} 11. e3 {[%clk 0:02:24]}  Rfc8 {[%clk 0:02:26]} 12. Re1 {[%clk 0:02:15]}  a5 {[%clk 0:02:25]} 13. Be5 {[%clk 0:02:06]}  b4 {[%clk 0:02:15]} 14. dxc5 {[%clk 0:02:03]}  Bxc5 {[%clk 0:02:13]} 15. Qf3 {[%clk 0:01:31]}  Be7 {[%clk 0:01:56]} 16. c4 {[%clk 0:01:26]}  Bc6 {[%clk 0:01:37]} 17. cxd5 {[%clk 0:01:25]}  Bxd5 {[%clk 0:01:33]} 18. e4 {[%clk 0:01:21]}  Bb7 {[%clk 0:01:30]} 19. Nb3 {[%clk 0:01:13]}  Qb5 {[%clk 0:01:24]} 20. Bf4 {[%clk 0:00:59]}  e5 {[%clk 0:01:17]} 21. Bf1 {[%clk 0:00:51]}  Qe8 {[%clk 0:00:55]} 22. Bxe5 {[%clk 0:00:50]}  Bd8 {[%clk 0:00:49]} 23. Bd4 {[%clk 0:00:38]}  a4 {[%clk 0:00:18]} 24. Nc5 {[%clk 0:00:38]}  Bc6 {[%clk 0:00:18]} 25. Qd3 {[%clk 0:00:30]}  Be7 {[%clk 0:00:16]} 26. Bxf6 {[%clk 0:00:16]}  Bxf6 {[%clk 0:00:13]} 27. e5 {[%clk 0:00:17]}  Be7 {[%clk 0:00:10]} 28. Ne4 {[%clk 0:00:16]}  Rd8 {[%clk 0:00:10]} 29. Qe3 {[%clk 0:00:13]}  Qd7 {[%clk 0:00:09]} 30. Bg2 {[%clk 0:00:10]}  Qe6 {[%clk 0:00:09]} 31. Nc5 {[%clk 0:00:08]}  Bxc5 {[%clk 0:00:06]} 32. Qxc5 {[%clk 0:00:09]}  Bxg2 {[%clk 0:00:06]} 33. Kxg2 {[%clk 0:00:10]}  b3 {[%clk 0:00:05]} 34. axb3 {[%clk 0:00:11]}  axb3 {[%clk 0:00:05]} 35. Rxa8 {[%clk 0:00:10]}  Rxa8 {[%clk 0:00:06]} 36. Re2 {[%clk 0:00:08]}  h6 {[%clk 0:00:06]} 37. Rd2 {[%clk 0:00:06]}  Rc8 {[%clk 0:00:06]} 38. Qd4 {[%clk 0:00:05]}  Re8 {[%clk 0:00:05]} 39. f4 {[%clk 0:00:04]}  g6 {[%clk 0:00:04]} 40. h3 {[%clk 0:00:03]}  h5 {[%clk 0:00:04]} 41. Qd5 {[%clk 0:00:03]}  Qb6 {[%clk 0:00:03]} 42. Kf3 {[%clk 0:00:02]}  Rc8 {[%clk 0:00:03]} 43. g4 {[%clk 0:00:02]}  hxg4+ {[%clk 0:00:03]} 44. hxg4 {[%clk 0:00:02]}  Rc2 {[%clk 0:00:03]} 45. e6 {[%clk 0:00:02]}  Rxd2 {[%clk 0:00:02]} 46. exf7+ {[%clk 0:00:02]}  Kf8 {[%clk 0:00:03]} 47. Qxd2 {[%clk 0:00:03]}  Kxf7 {[%clk 0:00:03]} 48. Qe3 {[%clk 0:00:04]}  Qc6+ {[%clk 0:00:02]} 49. Kg3 {[%clk 0:00:03]}  Qc2 {[%clk 0:00:01]} 50. Qa7+ {[%clk 0:00:03]}  Kg8 {[%clk 0:00:01]} 51. Qb8+ {[%clk 0:00:02]}  Kg7 {[%clk 0:00:02]} 52. Qb7+ {[%clk 0:00:03]}  Kg8 {[%clk 0:00:02]} 53. Qd5+ {[%clk 0:00:03]}  Kg7 {[%clk 0:00:02]} 54. Qe5+ {[%clk 0:00:03]}  Kg8 {[%clk 0:00:03]} 55. Qe6+ {[%clk 0:00:03]}  Kg7 {[%clk 0:00:03]} 56. f5 {[%clk 0:00:03]}  gxf5 {[%clk 0:00:03]} 57. gxf5 {[%clk 0:00:04]}  Qd3+ {[%clk 0:00:04]} 58. Kg4 {[%clk 0:00:04]}  Qd1+ {[%clk 0:00:04]} 59. Kf4 {[%clk 0:00:04]}  Qd2+ {[%clk 0:00:04]} 60. Kg4 {[%clk 0:00:03]}  Qxb2 {[%clk 0:00:05]} 61. Qe7+ {[%clk 0:00:03]}  Kg8 {[%clk 0:00:05]} 62. Qe8+ {[%clk 0:00:03]}  Kg7 {[%clk 0:00:05]} 63. Qe7+ {[%clk 0:00:04]}  Kg8 {[%clk 0:00:06]} 64. Qe8+ {[%clk 0:00:04]}  Kg7 {[%clk 0:00:06]} 65. Qe7+ {[%clk 0:00:03]} 1/2-1/2


[Site "https://www.chess.com"]

[Event "Titled Tuesday Blitz June 21 Late 2022"]
[White "Pinheiro, Iung Alicio de O."]
[Black "Rychkov, Roman"]
[WhiteFideId "2104350"]
[BlackFideId "30985595"]
[WhiteElo "2283"]
[BlackElo "2332"]
[Result "0-1"]
[Round "10"]
[TimeControl "180+1"]
[Date "2022.06.21"]
[WhiteClock "0:00:05"]
[BlackClock "0:00:06"]

1. e4 {[%clk 0:02:59]}  e5 {[%clk 0:03:00]} 2. Bc4 {[%clk 0:02:56]}  Nf6 {[%clk 0:02:59]} 3. d3 {[%clk 0:02:56]}  Bc5 {[%clk 0:02:57]} 4. Nc3 {[%clk 0:02:55]}  d6 {[%clk 0:02:55]} 5. f4 {[%clk 0:02:55]}  Bg4 {[%clk 0:02:33]} 6. Nf3 {[%clk 0:02:52]}  Nbd7 {[%clk 0:02:33]} 7. Na4 {[%clk 0:02:48]}  Bh5 {[%clk 0:02:17]} 8. h3 {[%clk 0:02:36]}  Bxf3 {[%clk 0:01:42]} 9. Qxf3 {[%clk 0:02:36]}  Qe7 {[%clk 0:01:41]} 10. Nxc5 {[%clk 0:02:22]}  Nxc5 {[%clk 0:01:41]} 11. fxe5 {[%clk 0:02:09]}  Qxe5 {[%clk 0:01:30]} 12. O-O {[%clk 0:02:08]}  Ne6 {[%clk 0:01:21]} 13. c3 {[%clk 0:01:53]}  O-O-O {[%clk 0:01:20]} 14. Be3 {[%clk 0:01:49]}  Kb8 {[%clk 0:01:19]} 15. Rae1 {[%clk 0:01:48]}  Rd7 {[%clk 0:01:06]} 16. Qf2 {[%clk 0:01:42]}  Qa5 {[%clk 0:01:00]} 17. Qc2 {[%clk 0:01:35]}  d5 {[%clk 0:00:54]} 18. exd5 {[%clk 0:01:06]}  Nxd5 {[%clk 0:00:50]} 19. Bf2 {[%clk 0:01:01]}  Rhd8 {[%clk 0:00:35]} 20. Re5 {[%clk 0:00:57]}  c6 {[%clk 0:00:33]} 21. d4 {[%clk 0:00:51]}  Ka8 {[%clk 0:00:30]} 22. Qe2 {[%clk 0:00:45]}  Nef4 {[%clk 0:00:26]} 23. Qf3 {[%clk 0:00:44]}  f6 {[%clk 0:00:25]} 24. Re4 {[%clk 0:00:41]}  Ng6 {[%clk 0:00:19]} 25. Bg3 {[%clk 0:00:41]}  b5 {[%clk 0:00:14]} 26. Bb3 {[%clk 0:00:41]}  Nb6 {[%clk 0:00:14]} 27. Rfe1 {[%clk 0:00:37]}  Nc8 {[%clk 0:00:13]} 28. Re8 {[%clk 0:00:36]}  Nge7 {[%clk 0:00:11]} 29. Rxd8 {[%clk 0:00:25]}  Qxd8 {[%clk 0:00:12]} 30. Be6 {[%clk 0:00:24]}  Rb7 {[%clk 0:00:10]} 31. Qe4 {[%clk 0:00:18]}  Nd5 {[%clk 0:00:10]} 32. Bf5 {[%clk 0:00:15]}  Nd6 {[%clk 0:00:10]} 33. Bxd6 {[%clk 0:00:13]}  Qxd6 {[%clk 0:00:11]} 34. Bxh7 {[%clk 0:00:13]}  Re7 {[%clk 0:00:09]} 35. Qb1 {[%clk 0:00:13]}  Qg3 {[%clk 0:00:06]} 36. Rxe7 {[%clk 0:00:13]}  Nxe7 {[%clk 0:00:07]} 37. Be4 {[%clk 0:00:13]}  f5 {[%clk 0:00:07]} 38. Bf3 {[%clk 0:00:13]}  Kb7 {[%clk 0:00:08]} 39. Qf1 {[%clk 0:00:12]}  Ng6 {[%clk 0:00:07]} 40. Qxb5+ {[%clk 0:00:12]}  Kc7 {[%clk 0:00:07]} 41. Qxc6+ {[%clk 0:00:12]}  Kd8 {[%clk 0:00:08]} 42. Qa8+ {[%clk 0:00:10]}  Ke7 {[%clk 0:00:08]} 43. Qxa7+ {[%clk 0:00:11]}  Kf6 {[%clk 0:00:09]} 44. Qb6+ {[%clk 0:00:11]}  Kg5 {[%clk 0:00:07]} 45. Qb7 {[%clk 0:00:09]}  Kh6 {[%clk 0:00:06]} 46. Kf1 {[%clk 0:00:09]}  Nf4 {[%clk 0:00:06]} 47. Qc6+ {[%clk 0:00:10]}  g6 {[%clk 0:00:06]} 48. Qa8 {[%clk 0:00:09]}  Nd3 {[%clk 0:00:03]} 49. Qh8+ {[%clk 0:00:08]}  Kg5 {[%clk 0:00:03]} 50. Qd8+ {[%clk 0:00:08]}  Kh6 {[%clk 0:00:04]} 51. Qh8+ {[%clk 0:00:06]}  Kg5 {[%clk 0:00:05]} 52. Ke2 {[%clk 0:00:06]}  Nf4+ {[%clk 0:00:04]} 53. Kd2 {[%clk 0:00:06]}  Qf2+ {[%clk 0:00:05]} 54. Kd1 {[%clk 0:00:06]}  Nd3 {[%clk 0:00:02]} 55. Qd8+ {[%clk 0:00:06]}  Kh6 {[%clk 0:00:02]} 56. Qf8+ {[%clk 0:00:06]}  Kg5 {[%clk 0:00:03]} 57. Qe7+ {[%clk 0:00:07]}  Kh6 {[%clk 0:00:03]} 58. Qe2 {[%clk 0:00:08]}  Qg1+ {[%clk 0:00:03]} 59. Kc2 {[%clk 0:00:08]}  Nf4 {[%clk 0:00:03]} 60. Qd2 {[%clk 0:00:08]}  Qh2 {[%clk 0:00:03]} 61. a4 {[%clk 0:00:07]}  g5 {[%clk 0:00:03]} 62. a5 {[%clk 0:00:07]}  Ne6 {[%clk 0:00:03]} 63. a6 {[%clk 0:00:07]}  Qc7 {[%clk 0:00:03]} 64. h4 {[%clk 0:00:06]}  f4 {[%clk 0:00:02]} 65. hxg5+ {[%clk 0:00:06]}  Kxg5 {[%clk 0:00:03]} 66. Qe2 {[%clk 0:00:06]}  Nxd4+ {[%clk 0:00:04]} 67. Kd3 {[%clk 0:00:05]}  Nxe2 {[%clk 0:00:05]} 68. Kxe2 {[%clk 0:00:04]}  Qb6 {[%clk 0:00:04]} 69. Bb7 {[%clk 0:00:04]}  Qxb2+ {[%clk 0:00:05]} 70. Kf3 {[%clk 0:00:05]}  Qb6 {[%clk 0:00:05]} 71. c4 {[%clk 0:00:04]}  Kf5 {[%clk 0:00:05]} 72. Bc8+ {[%clk 0:00:02]}  Ke5 {[%clk 0:00:05]} 73. Bb7 {[%clk 0:00:03]}  Qe3+ {[%clk 0:00:05]} 74. Kg4 {[%clk 0:00:04]}  Qg3+ {[%clk 0:00:06]} 75. Kh5 {[%clk 0:00:05]}  Kf6 {[%clk 0:00:06]} 0-1


[Site "https://www.chess.com"]

[Event "Titled Tuesday Blitz June 21 Late 2022"]
[White "Ricaurte Lopez, Juan Carlos"]
[Black "Prydun, Andriy"]
[WhiteFideId "3600327"]
[BlackFideId "14145898"]
[WhiteElo "2209"]
[BlackElo "2063"]
[Result "0-1"]
[Round "10"]
[TimeControl "180+1"]
[Date "2022.06.22"]
[WhiteClock "0:00:02"]
[BlackClock "0:00:03"]

1. e4 {[%clk 0:03:00]}  e6 {[%clk 0:02:59]} 2. d4 {[%clk 0:03:00]}  d5 {[%clk 0:02:58]} 3. exd5 {[%clk 0:03:00]}  exd5 {[%clk 0:02:58]} 4. Nf3 {[%clk 0:03:00]}  Bd6 {[%clk 0:02:57]} 5. c4 {[%clk 0:02:59]}  dxc4 {[%clk 0:02:53]} 6. Bxc4 {[%clk 0:02:57]}  Nf6 {[%clk 0:02:51]} 7. O-O {[%clk 0:02:55]}  O-O {[%clk 0:02:50]} 8. h3 {[%clk 0:02:54]}  Nbd7 {[%clk 0:02:42]} 9. Nc3 {[%clk 0:02:51]}  a6 {[%clk 0:02:33]} 10. Qd3 {[%clk 0:02:47]}  b5 {[%clk 0:02:28]} 11. Bb3 {[%clk 0:02:46]}  Bb7 {[%clk 0:02:27]} 12. Bg5 {[%clk 0:02:40]}  c5 {[%clk 0:02:15]} 13. dxc5 {[%clk 0:02:23]}  Nxc5 {[%clk 0:02:16]} 14. Qf5 {[%clk 0:02:22]}  Nxb3 {[%clk 0:02:10]} 15. Bxf6 {[%clk 0:02:18]}  Qxf6 {[%clk 0:02:07]} 16. Qxf6 {[%clk 0:02:17]}  gxf6 {[%clk 0:02:06]} 17. axb3 {[%clk 0:02:18]}  Bc5 {[%clk 0:01:51]} 18. Nh4 {[%clk 0:02:06]}  Rfe8 {[%clk 0:01:46]} 19. Rfe1 {[%clk 0:02:03]}  Rad8 {[%clk 0:01:41]} 20. Rxe8+ {[%clk 0:01:54]}  Rxe8 {[%clk 0:01:40]} 21. Kf1 {[%clk 0:01:54]}  Kg7 {[%clk 0:01:16]} 22. Rd1 {[%clk 0:01:47]}  Bc6 {[%clk 0:01:08]} 23. Ne2 {[%clk 0:01:22]}  Re5 {[%clk 0:00:50]} 24. Nd4 {[%clk 0:01:11]}  Rd5 {[%clk 0:00:26]} 25. Ndf5+ {[%clk 0:00:57]}  Kf8 {[%clk 0:00:26]} 26. Rc1 {[%clk 0:00:36]}  Bd7 {[%clk 0:00:23]} 27. g4 {[%clk 0:00:32]}  h5 {[%clk 0:00:16]} 28. Ke2 {[%clk 0:00:28]}  Re5+ {[%clk 0:00:11]} 29. Kf3 {[%clk 0:00:19]}  Bc6+ {[%clk 0:00:10]} 30. Kg3 {[%clk 0:00:18]}  hxg4 {[%clk 0:00:06]} 31. hxg4 {[%clk 0:00:17]}  Bb7 {[%clk 0:00:06]} 32. b4 {[%clk 0:00:15]}  Bb6 {[%clk 0:00:04]} 33. f4 {[%clk 0:00:11]}  Rd5 {[%clk 0:00:04]} 34. Nf3 {[%clk 0:00:03]}  Rd3 {[%clk 0:00:03]} 35. Nh4 {[%clk 0:00:02]}  a5 {[%clk 0:00:03]} 0-1


[Site "https://www.chess.com"]

[Event "Titled Tuesday Blitz June 21 Late 2022"]
[White "Romero Ruscalleda, Josep"]
[Black "Bachmann, Axel"]
[WhiteFideId "2231859"]
[BlackFideId "3700488"]
[WhiteElo "2385"]
[BlackElo "2587"]
[Result "1-0"]
[Round "10"]
[TimeControl "180+1"]
[Date "2022.06.22"]
[WhiteClock "0:01:33"]
[BlackClock "0:01:54"]

1. e4 {[%clk 0:03:00]}  c6 {[%clk 0:02:57]} 2. Nc3 {[%clk 0:03:00]}  d5 {[%clk 0:02:50]} 3. Nf3 {[%clk 0:03:00]}  Nf6 {[%clk 0:02:46]} 4. exd5 {[%clk 0:02:55]}  cxd5 {[%clk 0:02:46]} 5. d4 {[%clk 0:02:56]}  Bg4 {[%clk 0:02:46]} 6. h3 {[%clk 0:02:54]}  Bxf3 {[%clk 0:02:46]} 7. Qxf3 {[%clk 0:02:54]}  Nc6 {[%clk 0:02:44]} 8. Be3 {[%clk 0:02:53]}  e6 {[%clk 0:02:39]} 9. Bd3 {[%clk 0:02:47]}  Bd6 {[%clk 0:02:39]} 10. O-O {[%clk 0:02:42]}  O-O {[%clk 0:02:38]} 11. a3 {[%clk 0:02:41]}  e5 {[%clk 0:02:37]} 12. Nxd5 {[%clk 0:02:34]}  Nxd5 {[%clk 0:02:32]} 13. Qxd5 {[%clk 0:02:33]}  exd4 {[%clk 0:02:32]} 14. Qe4 {[%clk 0:02:31]}  g6 {[%clk 0:02:23]} 15. Bh6 {[%clk 0:02:28]}  Re8 {[%clk 0:02:16]} 16. Qg4 {[%clk 0:02:15]}  Ne5 {[%clk 0:02:12]} 17. Qd1 {[%clk 0:02:08]}  Qh4 {[%clk 0:02:10]} 18. Qd2 {[%clk 0:01:58]}  Nxd3 {[%clk 0:02:06]} 19. cxd3 {[%clk 0:01:47]}  Re6 {[%clk 0:02:00]} 20. Rfe1 {[%clk 0:01:38]}  Rf6 {[%clk 0:01:54]} 21. Bg5 {[%clk 0:01:33]} 1-0


[Site "https://www.chess.com"]